bitfinex/quotes_SOLUSD_20220207
["timestamp","ask_amount","ask_price","bid_price","bid_amount"]
[1644271148067,48.4367,117.89,117.79,14.60812923]
[1644271148264,93.26602115,117.89,117.8,23.4519]
[1644271148463,93.26602115,117.89,117.81,47.96024412]
[1644271148663,12.7307,117.87,117.81,47.96024412]
[1644271148863,12.7307,117.87,117.81,48.21024412]
[1644271150164,44.2905594,117.87,117.81,48.21024412]
[1644271150968,44.2905594,117.87,117.81,47.96024412]
[1644271151366,18.7307,117.87,117.81,47.96024412]
[1644271151566,12.7307,117.87,117.81,47.96024412]
[1644271152268,12.7307,117.87,117.81,48.21024412]
[1644271154567,36.07603248,117.86,117.81,48.21024412]
[1644271154768,48.80763248,117.86,117.81,48.21024412]
[1644271155875,12.7316,117.86,117.81,48.21024412]
[1644271156571,12.7316,117.86,117.81,0.25]
[1644271156772,12.7316,117.86,117.8,23.7019]
[1644271157573,12.7316,117.86,117.81,47.3947665]
[1644271157771,12.7316,117.86,117.81,47.6447665]
[1644271159272,12.7316,117.86,117.81,0.25]
[1644271159472,12.7316,117.86,117.8,23.7019]
[1644271160272,12.7316,117.86,117.81,35.71678166]
[1644271160675,12.7316,117.86,117.81,35.96678166]
[1644271162900,12.7292,117.88,117.81,35.96678166]
[1644271163097,4.243,117.92,117.82,1.87802923]
[1644271163298,24.24855913,117.93,117.83,12.29]
[1644271163496,24.24855913,117.93,117.84,23.0309]
[1644271163698,1.18055913,117.95,117.85,12.29]
[1644271163903,23.2092,117.97,117.87,48.12223296]
[1644271163904,68.54753777,117.96,117.87,48.12223296]
[1644271164097,12.7225,117.95,117.87,60.84423296]
[1644271164299,23.2092,117.97,117.88,14.16802923]
[1644271164696,23.2092,117.97,117.88,20.41802923]
[1644271164896,1.18055913,117.98,117.88,12.54]
[1644271165103,13.89775913,118.0,117.9,38.20730225]
[1644271165298,40.16368165,118.0,117.91,12.29]
[1644271165498,6.0,118.0,117.91,14.16802923]
[1644271165702,7.18055913,118.01,117.92,1.87802923]
[1644271166003,6.0,118.01,117.92,14.16802923]
[1644271166199,40.0933,118.03,117.92,20.41802923]
[1644271166502,37.78036672,118.02,117.94,42.15842468]
[1644271166699,43.78036672,118.02,117.94,42.40842468]
[1644271167002,10.159,118.03,117.95,12.29]
[1644271167198,10.159,118.03,117.95,12.54]
[1644271167398,10.159,118.03,117.96,1.87802923]
[1644271167599,10.159,118.03,117.96,14.16802923]
[1644271167800,50.8592,118.07,117.96,14.41802923]
[1644271168000,36.76659772,118.06,117.97,40.12300347]
[1644271168201,42.76659772,118.06,117.97,40.37300347]
[1644271169003,55.47779772,118.06,117.97,40.37300347]
[1644271169404,55.72779772,118.06,117.97,40.37300347]
[1644271170202,59.71379772,118.06,117.97,40.37300347]
[1644271171103,55.47779772,118.06,117.97,40.37300347]
[1644271173005,55.47779772,118.06,117.97,40.12300347]
[1644271173205,18.9612,118.06,117.97,38.24497424]
[1644271173504,12.7112,118.06,117.97,38.24497424]
[1644271173707,23.5762,118.07,117.98,1.87802923]
[1644271173907,23.5762,118.07,117.97,56.53497424]
[1644271174507,23.5762,118.07,117.99,38.14728814]
[1644271174704,54.76682467,118.08,117.99,38.39728814]
[1644271174906,60.76682467,118.08,117.99,38.39728814]
[1644271176203,61.01682467,118.08,117.99,38.39728814]
[1644271178007,61.01682467,118.08,117.99,38.14728814]
[1644271178412,63.16365324,118.08,117.99,38.14728814]
[1644271178609,12.7139,118.05,117.99,38.14728814]
[1644271178811,12.7139,118.05,117.97,12.29]
[1644271179414,18.7139,118.05,117.97,12.29]
[1644271179611,23.1999,118.05,117.95,12.29]
[1644271179913,12.7152,118.02,117.96,38.48812775]
[1644271180313,47.09388206,118.02,117.96,38.48812775]
[1644271180712,47.09388206,118.02,117.96,38.73812775]
[1644271181318,12.7152,118.02,117.96,38.73812775]
[1644271182420,47.91187944,118.02,117.96,38.73812775]
[1644271186020,47.91187944,118.02,117.96,0.25]
[1644271186219,48.16187944,118.02,117.93,52.8682]
[1644271186419,48.16187944,118.02,117.93,59.1582]
[1644271186620,54.16187944,118.02,117.93,46.8682]
[1644271187023,12.7199,117.99,117.93,46.8682]
[1644271187219,35.19667944,117.98,117.91,42.51454046]
[1644271187422,35.19667944,117.98,117.89,22.8355]
[1644271187620,35.19667944,117.98,117.89,28.8355]
[1644271188321,35.19667944,117.98,117.9,44.65540919]
[1644271188539,35.19667944,117.98,117.9,44.15540919]
[1644271188723,35.19667944,117.98,117.9,50.15540919]
[1644271188924,12.7209,117.97,117.9,50.15540919]
[1644271189124,41.69250111,117.96,117.9,50.15540919]
[1644271189537,41.69250111,117.96,117.9,44.15540919]
[1644271189723,41.94250111,117.96,117.9,44.15540919]
[1644271190225,41.69250111,117.96,117.9,44.40540919]
[1644271190524,4.239,117.98,117.9,44.40540919]
[1644271190725,10.489,117.98,117.9,44.40540919]
[1644271190927,12.722,117.96,117.9,44.40540919]
[1644271191126,12.722,117.96,117.9,44.15540919]
[1644271191327,12.972,117.96,117.9,44.15540919]
[1644271191526,52.47256956,117.96,117.9,44.15540919]
[1644271192830,52.47256956,117.96,117.9,44.40540919]
[1644271193032,52.22256956,117.96,117.9,44.40540919]
[1644271193835,12.722,117.96,117.9,44.40540919]
[1644271194035,48.4092,117.98,117.9,44.40540919]
[1644271194036,18.7197,117.98,117.9,44.40540919]
[1644271194236,18.7197,117.98,117.9,46.27856959]
[1644271194435,12.7197,117.98,117.91,12.29]
[1644271194835,5.41955913,118.01,117.92,44.49966003]
[1644271195038,13.89595913,118.02,117.92,58.66282043]
[1644271195237,12.7154,118.02,117.93,1.8731604]
[1644271195438,12.7154,118.02,117.93,14.1631604]
[1644271195636,12.7154,118.02,117.93,20.4131604]
[1644271195855,12.7154,118.02,117.94,39.00029857]
[1644271196256,12.7154,118.02,117.94,39.25029857]
[1644271196556,1.22698531,118.05,117.95,14.1631604]
[1644271196756,0.04642618,118.05,117.95,14.4131604]
[1644271196956,0.04642618,118.06,117.96,1.8731604]
[1644271197158,0.04642618,118.05,117.97,12.29]
[1644271197355,0.04642618,118.06,117.97,37.0039]
[1644271197556,0.04642618,118.05,117.98,49.36828658]
[1644271197856,0.04642618,118.06,117.99,12.29]
[1644271198056,51.00592634,118.07,118.0,38.09656695]
[1644271198258,50.95950016,118.07,118.0,38.34656695]
[1644271198756,6.0,118.07,118.0,38.34656695]
[1644271198955,12.75492618,118.08,118.0,38.34656695]
[1644271199156,18.7085,118.08,118.0,38.34656695]
[1644271199358,19.00492618,118.08,118.0,38.34656695]
[1644271199759,18.75492618,118.08,118.0,38.34656695]
[1644271200160,28.33917571,118.07,118.0,38.34656695]
[1644271200558,34.33917571,118.07,118.0,38.34656695]
[1644271200960,47.04807571,118.07,118.0,38.34656695]
[1644271201759,18.7089,118.07,118.0,38.34656695]
[1644271201963,6.0,118.07,118.0,65.21742735]
[1644271202160,0.04642618,118.08,118.0,71.21742735]
[1644271202365,18.75412618,118.09,118.0,71.21742735]
[1644271202559,0.04642618,118.08,118.0,71.21742735]
[1644271202760,64.17926309,118.09,118.0,71.21742735]
[1644271204369,58.17926309,118.09,118.0,71.21742735]
[1644271204569,58.17926309,118.09,118.0,65.21742735]
[1644271207973,58.17926309,118.09,118.0,63.34426695]
[1644271208174,58.17926309,118.09,118.0,50.63656695]
[1644271208474,58.42926309,118.09,118.0,50.63656695]
[1644271211077,58.42926309,118.09,118.0,63.34406695]
[1644271211078,57.42926309,118.09,118.0,63.34406695]
[1644271211876,57.17926309,118.09,118.0,63.34406695]
[1644271212779,57.17926309,118.09,118.01,0.0501]
[1644271213077,57.42926309,118.09,118.01,0.0501]
[1644271214379,57.17926309,118.09,118.01,0.0501]
[1644271215982,57.17926309,118.09,118.01,12.7568]
[1644271216182,11.75412618,118.09,118.02,12.29]
[1644271216383,11.7077,118.09,118.02,12.29]
[1644271216580,11.7077,118.09,118.02,12.54]
[1644271216782,11.7077,118.09,118.03,0.0501]
[1644271217185,39.15989672,118.08,118.03,0.0501]
[1644271217784,11.7077,118.09,118.03,0.0501]
[1644271218784,12.7051,118.1,118.03,0.0501]
[1644271220189,0.04642618,118.11,118.04,12.29]
[1644271220486,0.57962466,118.12,118.04,37.1015]
[1644271220686,0.57962466,118.12,118.05,0.0501]
[1644271220886,0.57962466,118.12,118.06,12.29]
[1644271221085,0.57962466,118.12,118.07,38.63777928]
[1644271221285,13.23629848,118.12,118.07,38.88777928]
[1644271223687,0.53319848,118.12,118.08,0.0501]
[1644271225489,0.53319848,118.12,118.08,12.3401]
[1644271225691,0.53319848,118.12,118.08,12.5901]
[1644271226489,0.53319848,118.12,118.09,38.08055079]
[1644271226692,0.53319848,118.12,118.09,38.33055079]
[1644271226889,0.53319848,118.12,118.1,2.05984621]
[1644271227095,0.53319848,118.12,118.1,2.10994621]
[1644271227389,0.53319848,118.12,118.1,2.35994621]
[1644271230714,4.00455373,118.11,118.1,0.0501]
[1644271232117,4.00455373,118.11,118.05,49.2351592]
[1644271232315,41.64536594,118.1,118.05,55.2351592]
[1644271232515,0.04642618,118.11,118.05,55.2351592]
[1644271232715,0.04642618,118.11,118.05,49.2351592]
[1644271232919,0.53319848,118.12,118.06,12.7013]
[1644271233215,0.53319848,118.12,118.05,12.29]
[1644271233416,0.53319848,118.12,118.04,23.4798]
[1644271233616,2.68002705,118.12,118.04,23.4798]
[1644271234029,45.24232408,118.11,118.04,23.4798]
[1644271234218,31.64685647,118.09,118.04,23.4798]
[1644271235520,12.7056,118.1,118.04,23.4798]
[1644271236319,12.7056,118.1,118.04,23.7298]
[1644271236618,37.67287952,118.09,118.04,23.7298]
[1644271236816,37.67287952,118.09,118.04,23.4798]
[1644271237031,37.67287952,118.09,118.04,0.0501]
[1644271237032,50.37877952,118.09,118.04,0.0501]
[1644271237229,58.77560809,118.09,118.04,0.0501]
[1644271237431,26.8454,118.08,117.96,12.29]
[1644271237629,34.07238531,118.08,117.94,12.29]
[1644271237831,36.13646483,118.07,117.95,39.22411941]
[1644271238231,42.38646483,118.07,117.95,39.22411941]
[1644271238432,4.236,118.06,117.99,0.30742477]
[1644271238636,0.04642618,118.08,118.0,12.29]
[1644271238831,5.46198531,118.11,118.0,12.29]
[1644271239030,0.04642618,118.08,118.0,18.29]
[1644271239430,35.74621637,118.11,118.01,62.72950437]
[1644271239632,0.04642618,118.08,118.01,62.72950437]
[1644271239830,0.04642618,118.1,118.01,62.72950437]
[1644271240032,0.04642618,118.1,118.01,62.97950437]
[1644271240734,12.75282618,118.1,118.01,81.68630437]
[1644271240933,37.42114384,118.09,118.01,81.68630437]
[1644271241636,37.42114384,118.09,118.01,75.68630437]
[1644271241936,50.12834384,118.09,118.01,75.68630437]
[1644271242334,50.12834384,118.09,118.01,81.68630437]
[1644271242535,50.12834384,118.09,118.01,75.68630437]
[1644271242936,50.12834384,118.09,118.01,81.68630437]
[1644271243339,50.12834384,118.09,118.01,75.68630437]
[1644271243537,50.12834384,118.09,118.01,81.68630437]
[1644271243736,50.12834384,118.09,118.01,75.68630437]
[1644271243938,50.12834384,118.09,118.01,81.68630437]
[1644271244139,50.12834384,118.09,118.01,62.97950437]
[1644271246942,50.12834384,118.09,118.01,25.1158]
[1644271247143,56.12834384,118.09,118.01,25.1158]
[1644271247443,61.79390297,118.09,117.97,23.0603]
[1644271247642,12.7129,118.05,117.97,23.0603]
[1644271247843,12.9629,118.05,117.96,24.8231]
[1644271248044,39.46803671,118.04,117.97,36.00351575]
[1644271249145,39.46803671,118.04,117.97,36.25351575]
[1644271250046,37.42114384,118.02,117.97,36.00351575]
[1644271250851,37.42114384,118.02,117.96,37.5357]
[1644271251647,50.13474384,118.02,117.96,24.8231]
[1644271252848,50.13474384,118.02,117.96,25.0731]
[1644271253048,50.13474384,118.02,117.95,48.34121292]
[1644271253249,12.7136,118.02,117.95,48.34121292]
[1644271254249,12.7136,118.02,117.95,48.59121292]
[1644271254649,12.7136,118.02,117.95,61.30461292]
[1644271256449,23.6854,118.05,117.95,73.59461292]
[1644271256650,29.9354,118.05,117.95,73.59461292]
[1644271257453,29.6854,118.05,117.95,73.59461292]
[1644271257652,29.6854,118.05,117.95,75.46777332]
[1644271257853,40.05965153,118.04,117.95,75.46777332]
[1644271258053,12.7127,118.03,117.95,75.46777332]
[1644271259853,52.77095153,118.04,117.95,75.46777332]
[1644271260455,52.77095153,118.04,117.95,81.46777332]
[1644271261255,12.7113,118.04,117.95,81.46777332]
[1644271261456,12.7113,118.04,117.95,104.56627332]
[1644271263759,12.7113,118.04,118.03,0.3505988]
[1644271264057,16.71585373,118.04,118.03,0.3505988]
[1644271264558,4.00455373,118.04,118.03,0.3505988]
[1644271270664,16.71605373,118.04,117.97,12.7115]
[1644271270861,16.71605373,118.04,117.93,1.20742329]
[1644271271061,6.38382857,118.03,117.91,1.20742329]
[1644271271269,6.63382857,118.03,117.91,1.20742329]
[1644271271461,24.3703,118.02,117.9,1.20742329]
[1644271271665,45.74085298,118.01,117.91,46.51262365]
[1644271271861,12.7182,118.0,117.91,71.51942365]
[1644271272061,12.7182,118.0,117.91,72.72684694]
[1644271272260,12.7182,118.0,117.91,71.51942365]
[1644271274163,6.0,118.02,117.91,71.51942365]
[1644271274362,18.7143,118.02,117.94,12.7131]
[1644271274569,6.0,118.03,117.94,25.0031]
[1644271274964,38.11867769,118.05,117.95,43.36918776]
[1644271275164,48.35567769,118.05,117.95,43.36918776]
[1644271275365,48.35567769,118.05,117.95,43.61918776]
[1644271275564,49.53623682,118.05,117.95,43.61918776]
[1644271275965,35.36879883,118.02,117.95,43.61918776]
[1644271277769,32.30887983,118.02,117.95,43.61918776]
[1644271277984,12.7149,118.01,117.95,43.61918776]
[1644271279798,41.16978292,118.0,117.95,43.61918776]
[1644271280004,41.16978292,118.0,117.95,0.25]
[1644271280198,41.16978292,118.0,117.94,25.2531]
[1644271280600,41.16978292,118.0,117.94,25.0031]
[1644271280998,41.16978292,118.0,117.94,70.55904437]
[1644271281199,53.88508292,118.0,117.94,57.84594437]
[1644271281798,53.88508292,118.0,117.94,45.55594437]
[1644271281999,53.88508292,118.0,117.94,45.80594437]
[1644271282400,53.88508292,118.0,117.94,0.25]
[1644271282698,53.88508292,118.0,117.92,60.2108]
[1644271282899,53.88508292,118.0,117.92,72.6772]
[1644271283500,53.88508292,118.0,117.93,41.46542859]
[1644271284802,53.88508292,118.0,117.93,41.71542859]
[1644271292308,53.88508292,118.0,117.93,0.25]
[1644271292808,53.88508292,118.0,117.92,47.9208]
[1644271293309,53.88508292,118.0,117.92,85.99290307]
[1644271294509,53.88508292,118.0,117.9,13.92632329]
[1644271294712,83.44048292,118.0,117.9,19.49742329]
[1644271294910,83.44048292,118.0,117.9,6.0]
[1644271295110,85.58731149,118.0,117.89,32.20032329]
[1644271295310,85.58731149,118.0,117.89,24.9929]
[1644271295509,85.58731149,118.0,117.89,46.72792394]
[1644271295710,86.76787062,118.0,117.89,46.72792394]
[1644271296214,99.05787062,118.0,117.89,46.72792394]
[1644271296412,4.239,117.99,117.89,46.72792394]
[1644271296612,12.7226,117.96,117.89,46.69402394]
[1644271296810,41.20368292,117.95,117.89,46.94402394]
[1644271297012,41.20368292,117.95,117.89,0.25]
[1644271297215,41.20368292,117.95,117.88,23.3528]
[1644271297413,41.20368292,117.95,117.88,23.1028]
[1644271298011,41.20368292,117.95,117.89,34.51934502]
[1644271298710,41.20368292,117.95,117.89,34.76934502]
[1644271298911,12.7227,117.94,117.89,34.76934502]
[1644271303218,12.7227,117.94,117.89,0.25]
[1644271303418,12.7227,117.94,117.88,23.3528]
[1644271304220,32.30887983,117.93,117.88,23.3528]
[1644271304421,45.03187983,117.93,117.88,0.25]
[1644271304724,45.03187983,117.93,117.87,60.14921699]
[1644271305322,12.723,117.93,117.87,60.14921699]
[1644271308828,12.723,117.93,117.87,72.87151699]
[1644271311132,12.723,117.93,117.87,74.07894028]
[1644271311538,42.4098,117.96,117.87,80.07894028]
[1644271311838,42.4021,117.98,117.87,92.39294028]
[1644271312069,28.5629,118.01,117.88,5.44642329]
[1644271312263,24.3239,118.01,117.91,12.7169]
[1644271312463,44.75448098,118.0,117.92,71.01907457]
[1644271312667,50.75448098,118.0,117.92,71.01907457]
[1644271312865,50.75448098,118.0,117.92,71.26907457]
[1644271313064,28.75808177,117.98,117.92,71.26907457]
[1644271313464,28.75808177,117.98,117.92,83.98577457]
[1644271313664,6.0,118.0,117.92,83.98577457]
[1644271313865,72.7147,118.01,117.92,83.98577457]
[1644271314066,72.7147,118.01,117.92,89.98577457]
[1644271314266,72.7147,118.01,117.92,102.27577457]
[1644271314670,47.24451162,118.0,117.92,102.27577457]
[1644271315066,12.7177,117.98,117.92,102.27577457]
[1644271317368,12.716,117.99,117.92,102.27577457]
[1644271319370,12.716,117.99,117.92,102.02577457]
[1644271319670,41.89234979,118.0,117.9,43.59382329]
[1644271319671,12.7181,117.97,117.91,12.7187]
[1644271319868,12.7181,117.97,117.89,25.54982329]
[1644271319869,22.3051,117.97,117.89,25.54982329]
[1644271320072,22.3051,117.97,117.89,24.3424]
[1644271320569,28.3051,117.97,117.89,24.3424]
[1644271320870,28.3051,117.97,117.9,45.75112164]
[1644271321070,12.7181,117.97,117.9,45.75112164]
[1644271321371,12.7181,117.97,117.9,46.00112164]
[1644271321669,35.89234979,117.96,117.9,46.00112164]
[1644271321872,12.7216,117.95,117.9,46.00112164]
[1644271322075,12.7216,117.95,117.9,0.25]
[1644271322272,12.7216,117.95,117.89,0.024]
[1644271322473,12.7216,117.95,117.88,0.25]
[1644271322876,12.7216,117.95,117.87,13.77142329]
[1644271323075,12.7216,117.95,117.88,38.30341057]
[1644271323300,12.7232,117.93,117.88,39.76083386]
[1644271323474,12.7232,117.93,117.89,0.024]
[1644271323674,12.7232,117.93,117.88,39.76083386]
[1644271323873,12.7232,117.93,117.88,38.55341057]
[1644271324777,12.7232,117.93,117.88,39.76083386]
[1644271324976,12.7232,117.93,117.88,54.34070735]
[1644271325579,11.7232,117.93,117.88,54.34070735]
[1644271326378,42.4086,117.96,117.88,54.34070735]
[1644271326676,12.7214,117.94,117.88,54.34070735]
[1644271327279,47.08051355,117.94,117.88,54.34070735]
[1644271327481,47.08051355,117.94,117.88,1.20742329]
[1644271327683,53.08051355,117.94,117.87,1.23142329]
[1644271327884,53.08051355,117.94,117.85,1.23142329]
[1644271328081,53.08051355,117.94,117.85,0.024]
[1644271328388,77.46241355,117.94,117.86,0.024]
[1644271337110,142.73924212,117.94,117.86,0.024]
[1644271337309,12.7319,117.91,117.84,0.024]
[1644271337511,24.9236,117.9,117.81,0.024]
[1644271337810,31.1736,117.9,117.84,0.024]
[1644271338009,65.58042238,117.9,117.81,43.92256718]
[1644271338210,65.58042238,117.9,117.82,0.024]
[1644271338911,12.7317,117.89,117.82,0.024]
[1644271339108,18.7317,117.89,117.82,0.024]
[1644271339513,39.10574037,117.88,117.82,0.024]
[1644271340916,12.7296,117.87,117.82,0.024]
[1644271341212,12.7296,117.87,117.8,0.024]
[1644271342014,12.7332,117.85,117.8,0.024]
[1644271342216,12.7332,117.85,117.79,45.90806767]
[1644271342913,12.2352,117.85,117.79,46.15806767]
[1644271343313,12.2352,117.85,117.79,45.90806767]
[1644271344115,30.26049956,117.84,117.79,45.90806767]
[1644271344318,12.7332,117.84,117.79,45.90806767]
[1644271345519,12.7332,117.84,117.79,46.15806767]
[1644271346620,12.7316,117.86,117.79,46.15806767]
[1644271346820,12.29,117.91,117.79,52.18206767]
[1644271347020,41.1805,117.93,117.8,24.8748]
[1644271347219,6.0,117.91,117.81,0.024]
[1644271347421,46.44436025,117.9,117.81,45.4473821]
[1644271347620,65.17236025,117.9,117.82,0.024]
[1644271348020,59.17236025,117.9,117.82,0.024]
[1644271348519,82.70746025,117.9,117.82,0.024]
[1644271350420,36.2631,117.9,117.82,0.024]
[1644271351324,77.13385513,117.9,117.82,0.024]
[1644271364758,77.13385513,117.9,117.82,1.23142329]
[1644271364957,77.13385513,117.9,117.83,34.9293729]
[1644271365158,77.13385513,117.9,117.83,34.9533729]
[1644271365358,77.13385513,117.9,117.83,35.2033729]
[1644271366062,77.13385513,117.9,117.83,0.274]
[1644271366461,77.13385513,117.9,117.83,0.024]
[1644271367164,83.13385513,117.9,117.83,0.024]
[1644271367762,42.2631,117.9,117.83,0.024]
[1644271367961,36.2631,117.9,117.83,0.024]
[1644271368565,42.2631,117.9,117.83,0.024]
[1644271368763,77.24385944,117.9,117.83,0.024]
[1644271371467,71.24385944,117.9,117.83,0.024]
[1644271372368,36.2631,117.9,117.83,0.024]
[1644271372766,12.728,117.9,117.83,12.751]
[1644271372966,24.9349,117.94,117.84,1.20742329]
[1644271373166,24.9349,117.94,117.84,19.52142329]
[1644271373367,24.9349,117.94,117.85,48.4127481]
[1644271373571,24.9349,117.94,117.87,44.61352033]
[1644271373767,24.9349,117.94,117.87,57.60982033]
[1644271375068,12.7228,117.93,117.87,57.60982033]
[1644271375268,12.7228,117.93,117.87,57.58582033]
[1644271375673,24.9349,117.94,117.87,57.58582033]
[1644271375869,24.9349,117.94,117.87,57.60982033]
[1644271376073,12.722,117.94,117.87,57.60982033]
[1644271377170,12.722,117.94,117.87,63.60982033]
[1644271377571,11.722,117.94,117.87,63.60982033]
[1644271378972,11.722,117.94,117.87,75.89982033]
[1644271382574,11.722,117.94,117.87,75.87582033]
[1644271386878,11.722,117.94,117.87,77.74378332]
[1644271387279,4.24,117.99,117.87,77.74378332]
[1644271387479,4.24,117.99,117.88,22.8727]
[1644271387678,1.19536529,118.02,117.91,12.7171]
[1644271387879,43.58306529,118.03,117.92,12.29]
[1644271388078,4.238,118.03,117.92,20.15796299]
[1644271388280,37.81054971,118.02,117.93,44.70322018]
[1644271388478,37.81054971,118.02,117.93,46.57118317]
[1644271388778,37.81054971,118.02,117.93,46.82118317]
[1644271388981,50.52604971,118.02,117.93,59.53648317]
[1644271389878,50.52604971,118.02,117.93,83.36178317]
[1644271391081,12.7155,118.02,117.93,83.36178317]
[1644271391283,12.7141,118.03,117.93,83.36178317]
[1644271391483,12.7141,118.03,117.93,89.36178317]
[1644271391680,0.04642618,118.05,117.94,14.15796299]
[1644271391880,0.04642618,118.05,117.95,12.713]
[1644271392083,35.36620907,118.05,117.96,46.63464047]
[1644271392380,35.31978289,118.05,117.96,46.88464047]
[1644271392580,35.36620907,118.05,117.96,70.93314047]
[1644271392781,48.07920907,118.05,117.96,70.93314047]
[1644271392982,54.32920907,118.05,117.96,70.93314047]
[1644271393182,78.94040907,118.05,117.96,70.93314047]
[1644271395189,72.94040907,118.05,117.96,70.93314047]
[1644271395399,37.62062618,118.05,117.96,70.93314047]
[1644271395993,37.62062618,118.05,117.96,83.64584047]
[1644271396393,37.62062618,118.05,117.96,89.64584047]
[1644271396597,12.75942618,118.05,117.96,103.80380346]
[1644271397396,48.36947398,118.05,117.96,103.80380346]
[1644271402415,0.04642618,118.05,117.96,103.80380346]
[1644271402619,0.04642618,118.09,117.99,12.7062]
[1644271402815,0.04642618,118.05,118.0,35.7]
[1644271403017,0.04642618,118.08,118.0,37.56796299]
[1644271403234,0.04642618,118.08,118.01,1.86796299]
[1644271403417,43.96112434,118.09,118.02,12.29]
[1644271403616,43.91469816,118.09,118.02,49.0193]
[1644271403817,43.91469816,118.09,118.02,49.2693]
[1644271404116,43.91469816,118.09,118.02,55.2693]
[1644271404517,43.91469816,118.09,118.02,49.2693]
[1644271405720,43.91469816,118.09,118.03,45.95519957]
[1644271406119,43.91469816,118.09,118.03,46.20519957]
[1644271406321,59.42512618,118.1,118.03,46.20519957]
[1644271406522,0.04642618,118.11,118.04,12.29]
[1644271406723,0.57962466,118.12,118.04,12.54]
[1644271406925,0.57962466,118.12,118.05,1.86796299]
[1644271407120,0.57962466,118.12,118.06,12.29]
[1644271407324,0.57962466,118.12,118.07,44.43343128]
[1644271407521,0.53319848,118.12,118.07,69.42293128]
[1644271407721,0.53319848,118.12,118.07,69.67293128]
[1644271407922,0.53319848,118.12,118.07,75.67293128]
[1644271408122,0.53319848,118.12,118.08,1.86827669]
[1644271408324,0.53319848,118.12,118.08,14.40827669]
[1644271408523,0.53319848,118.12,118.09,47.12132511]
[1644271408724,0.8878749,118.14,118.1,2.05984621]
[1644271408923,0.8878749,118.14,118.1,14.34984621]
[1644271409225,0.8878749,118.14,118.1,22.4681229]
[1644271409823,0.8878749,118.14,118.11,44.22677451]
[1644271410024,7.49e-05,118.14,118.11,24.9848]
[1644271410224,7.49e-05,118.14,118.12,2.05984621]
[1644271410526,7.49e-05,118.14,118.12,14.34984621]
[1644271410823,7.49e-05,118.14,118.12,14.59984621]
[1644271411628,7.49e-05,118.14,118.12,2.30984621]
[1644271415830,0.4615711,118.17,118.12,50.27275152]
[1644271416230,0.4615711,118.17,118.12,2.05984621]
[1644271417934,13.1607711,118.17,118.12,2.05984621]
[1644271418232,4.232,118.16,118.06,12.29]
[1644271418432,29.18142618,118.16,118.04,34.9705]
[1644271418632,38.64028172,118.15,118.05,35.69577022]
[1644271418832,34.87228103,118.13,118.05,35.69577022]
[1644271419035,34.91870721,118.13,118.05,53.98577022]
[1644271419232,34.91870721,118.13,118.05,54.23577022]
[1644271422035,34.91870721,118.13,118.05,66.93677022]
[1644271422439,0.04642618,118.13,118.05,66.93677022]
[1644271422737,0.04642618,118.15,118.06,24.0119]
[1644271422940,0.04642618,118.13,118.06,36.3019]
[1644271423136,0.04642618,118.15,118.06,42.5519]
[1644271423436,37.95513262,118.15,118.07,47.35059949]
[1644271423667,37.95513262,118.15,118.07,53.35059949]
[1644271423837,37.95513262,118.15,118.07,53.60059949]
[1644271424942,50.65593262,118.15,118.07,53.60059949]
[1644271425538,56.65593262,118.15,118.07,53.60059949]
[1644271425740,56.65593262,118.15,118.07,6.25]
[1644271425940,50.65593262,118.15,118.07,0.25]
[1644271426140,50.65593262,118.15,118.06,55.2519]
[1644271426343,50.65593262,118.15,118.06,49.0019]
[1644271426540,56.65593262,118.15,118.06,42.3019]
[1644271426740,56.90593262,118.15,118.06,18.29]
[1644271427743,56.90593262,118.15,118.06,6.25]
[1644271427941,56.90593262,118.15,118.04,48.0751]
[1644271428142,56.90593262,118.15,118.03,24.9318]
[1644271428143,23.91302618,118.14,118.03,24.9318]
[1644271428343,23.91302618,118.14,118.0,66.3087]
[1644271428344,12.7056,118.11,118.01,35.9767]
[1644271428541,0.04642618,118.1,118.01,35.9767]
[1644271428942,35.65028249,118.1,118.01,74.36227122]
[1644271429241,65.76688249,118.1,118.01,74.61227122]
[1644271429941,37.90870644,118.08,118.01,74.61227122]
[1644271430941,6.04642618,118.1,118.01,89.18624791]
[1644271431142,0.04642618,118.1,118.01,95.18624791]
[1644271431747,0.04642618,118.11,118.01,95.18624791]
[1644271431950,46.61843025,118.11,118.01,95.18624791]
[1644271432146,52.61843025,118.11,118.01,95.18624791]
[1644271433150,65.32323025,118.11,118.01,95.18624791]
[1644271434047,65.32323025,118.11,118.01,87.31797122]